[Event "Early-Titled-Tuesday-Blitz-September-05-2023"]
[Site "Chess.com"]
[Date "2023.09.05"]
[Round "7"]
[White "ferrufino64"]
[Black "realburq"]
[Result "1-0"]
[WhiteElo "2163"]
[BlackElo "2380"]
[TimeControl "180+1"]
[EndTime "9:16:34 PDT"]
[Termination "ferrufino64 won by checkmate"]

1. e4 {[%clk 0:02:56.6]} 1... c6 {[%clk 0:02:57.4]} 2. d4 {[%clk 0:02:54.8]}
2... g6 {[%clk 0:02:57]} 3. Nf3 {[%clk 0:02:53.2]} 3... Bg7 {[%clk 0:02:57.1]}
4. Nc3 {[%clk 0:02:52.1]} 4... d5 {[%clk 0:02:57.1]} 5. h3 {[%clk 0:02:46.4]}
5... dxe4 {[%clk 0:02:41.3]} 6. Nxe4 {[%clk 0:02:46.1]} 6... Nd7 {[%clk
0:02:39.6]} 7. Bc4 {[%clk 0:02:36]} 7... Ndf6 {[%clk 0:02:26.3]} 8. Ng3 {[%clk
0:02:23.3]} 8... Nh6 {[%clk 0:02:22.3]} 9. Qe2 {[%clk 0:02:22.6]} 9... Nf5
{[%clk 0:02:15]} 10. Nxf5 {[%clk 0:02:18]} 10... Bxf5 {[%clk 0:02:15.9]} 11. O-O
{[%clk 0:02:12.7]} 11... O-O {[%clk 0:02:15.2]} 12. Re1 {[%clk 0:02:12.7]} 12...
Nd5 {[%clk 0:02:03.5]} 13. c3 {[%clk 0:02:11.5]} 13... Re8 {[%clk 0:01:53.7]}
14. Bg5 {[%clk 0:02:10.4]} 14... Qb6 {[%clk 0:01:44.2]} 15. Rad1 {[%clk
0:02:06.6]} 15... h6 {[%clk 0:01:44.2]} 16. Bh4 {[%clk 0:02:06.4]} 16... Nf4
{[%clk 0:01:43.1]} 17. Qd2 {[%clk 0:01:57.3]} 17... Nd5 {[%clk 0:01:30.1]} 18.
Ne5 {[%clk 0:01:39.6]} 18... Rad8 {[%clk 0:01:28.6]} 19. Bxd5 {[%clk 0:01:30.2]}
19... Rxd5 {[%clk 0:01:26.7]} 20. Nc4 {[%clk 0:01:23.9]} 20... Qa6 {[%clk
0:01:22.8]} 21. Ne3 {[%clk 0:01:23.5]} 21... Ra5 {[%clk 0:01:10.2]} 22. a3
{[%clk 0:01:17.7]} 22... Be6 {[%clk 0:01:02.8]} 23. Re2 {[%clk 0:01:11]} 23...
Rd8 {[%clk 0:01:02.5]} 24. Bxe7 {[%clk 0:01:09.4]} 24... Rd7 {[%clk 0:01:02.9]}
25. Bb4 {[%clk 0:01:09.2]} 25... Rg5 {[%clk 0:01:02]} 26. f4 {[%clk 0:00:57]}
26... Rh5 {[%clk 0:00:55]} 27. f5 {[%clk 0:00:52.5]} 27... Bb3 {[%clk
0:00:45.2]} 28. Rf1 {[%clk 0:00:50.6]} 28... b6 {[%clk 0:00:34.2]} 29. Qe1
{[%clk 0:00:42.5]} 29... Qc8 {[%clk 0:00:20.2]} 30. Ng4 {[%clk 0:00:25.2]} 30...
Rd8 {[%clk 0:00:17.2]} 31. f6 {[%clk 0:00:22.9]} 31... Bf8 {[%clk 0:00:16.7]}
32. Be7 {[%clk 0:00:23.1]} 32... Re8 {[%clk 0:00:12.7]} 33. Re5 {[%clk
0:00:16.7]} 33... Bc4 {[%clk 0:00:12.3]} 34. Rf2 {[%clk 0:00:16.5]} 34... Rxe5
{[%clk 0:00:12.1]} 35. Qxe5 {[%clk 0:00:14.9]} 35... Bd5 {[%clk 0:00:10.8]} 36.
Qe3 {[%clk 0:00:14.8]} 36... h5 {[%clk 0:00:10.8]} 37. Nh6+ {[%clk 0:00:14.7]}
37... Bxh6 {[%clk 0:00:10.5]} 38. Qxh6 {[%clk 0:00:14.5]} 38... Rxe7 {[%clk
0:00:11.1]} 39. Qg7# {[%clk 0:00:15]} 1-0

[Event "Early-Titled-Tuesday-Blitz-September-05-2023"]
[Site "Chess.com"]
[Date "2023.09.05"]
[Round "7"]
[White "baki83"]
[Black "onnoelgersma"]
[Result "1-0"]
[WhiteElo "2815"]
[BlackElo "2585"]
[TimeControl "180+1"]
[EndTime "9:16:36 PDT"]
[Termination "baki83 won by resignation"]

1. e4 {[%clk 0:03:00.9]} 1... c6 {[%clk 0:03:00.4]} 2. Nf3 {[%clk 0:02:59.8]}
2... d5 {[%clk 0:03:00.7]} 3. d3 {[%clk 0:02:59.9]} 3... g6 {[%clk 0:02:50.7]}
4. e5 {[%clk 0:02:56.4]} 4... Bg7 {[%clk 0:02:50.7]} 5. d4 {[%clk 0:02:56.5]}
5... Bg4 {[%clk 0:02:43.7]} 6. Nbd2 {[%clk 0:02:54.3]} 6... e6 {[%clk
0:02:37.9]} 7. h3 {[%clk 0:02:54.1]} 7... Bxf3 {[%clk 0:02:37.1]} 8. Nxf3 {[%clk
0:02:55]} 8... h5 {[%clk 0:02:36.6]} 9. c3 {[%clk 0:02:54.1]} 9... Nd7 {[%clk
0:02:27.3]} 10. Bd3 {[%clk 0:02:51.9]} 10... Bh6 {[%clk 0:02:27.6]} 11. Bxh6
{[%clk 0:02:43.8]} 11... Nxh6 {[%clk 0:02:28.5]} 12. g4 {[%clk 0:02:43]} 12...
Qb6 {[%clk 0:02:22.9]} 13. Qd2 {[%clk 0:02:37.9]} 13... O-O-O {[%clk 0:02:12.2]}
14. Rg1 {[%clk 0:02:24.8]} 14... Ng8 {[%clk 0:01:51.9]} 15. Ng5 {[%clk
0:02:07.9]} 15... Rf8 {[%clk 0:01:50.6]} 16. b4 {[%clk 0:02:06.9]} 16... Qd8
{[%clk 0:01:42.2]} 17. Bxg6 {[%clk 0:01:44.3]} 17... fxg6 {[%clk 0:01:40.4]} 18.
Nxe6 {[%clk 0:01:44.2]} 18... Qe7 {[%clk 0:01:41.1]} 19. Nxf8 {[%clk 0:01:44.1]}
19... Nxf8 {[%clk 0:01:41.3]} 20. O-O-O {[%clk 0:01:31]} 20... g5 {[%clk
0:01:28.2]} 21. gxh5 {[%clk 0:01:29.6]} 21... Ne6 {[%clk 0:01:21.1]} 22. h4
{[%clk 0:01:26.6]} 22... gxh4 {[%clk 0:01:16.5]} 23. Rg6 {[%clk 0:01:24.7]}
23... Qf7 {[%clk 0:01:09.8]} 24. Rdg1 {[%clk 0:01:24]} 24... h3 {[%clk
0:01:06.9]} 25. f4 {[%clk 0:00:59.2]} 25... Nxf4 {[%clk 0:00:19]} 26. Rf1 {[%clk
0:00:50]} 26... Rxh5 {[%clk 0:00:17.7]} 27. Rg4 {[%clk 0:00:47.2]} 27... h2
{[%clk 0:00:13.8]} 28. Rgxf4 {[%clk 0:00:47.5]} 28... h1=Q {[%clk 0:00:13.6]}
29. Rxf7 {[%clk 0:00:46.8]} 29... Qe4 {[%clk 0:00:10.1]} 30. Rf8+ {[%clk
0:00:45.3]} 30... Kc7 {[%clk 0:00:10.6]} 31. Rxg8 {[%clk 0:00:45.4]} 31... Rh3
{[%clk 0:00:10.7]} 32. Re1 {[%clk 0:00:36.9]} 32... Qh7 {[%clk 0:00:08.9]} 33.
Rg2 {[%clk 0:00:33.5]} 33... Rd3 {[%clk 0:00:08.4]} 34. Qc2 {[%clk 0:00:33.3]}
34... Qh6+ {[%clk 0:00:07.8]} 35. Kb2 {[%clk 0:00:33.3]} 35... Rh3 {[%clk
0:00:07.5]} 36. Rge2 {[%clk 0:00:33]} 36... a5 {[%clk 0:00:07.6]} 37. e6 {[%clk
0:00:33.1]} 37... axb4 {[%clk 0:00:08]} 38. cxb4 {[%clk 0:00:33.7]} 38... Qf6
{[%clk 0:00:07.2]} 39. Qd2 {[%clk 0:00:32.7]} 39... Qf3 {[%clk 0:00:06.8]} 40.
e7 {[%clk 0:00:27.5]} 40... Qa3+ {[%clk 0:00:07]} 41. Ka1 {[%clk 0:00:27.8]}
41... Rd3 {[%clk 0:00:03.7]} 42. Qb2 {[%clk 0:00:26.7]} 1-0

[Event "Early-Titled-Tuesday-Blitz-September-05-2023"]
[Site "Chess.com"]
[Date "2023.09.05"]
[Round "7"]
[White "jk13"]
[Black "Sjakkerntobi"]
[Result "1-0"]
[WhiteElo "2673"]
[BlackElo "2482"]
[TimeControl "180+1"]
[EndTime "9:16:37 PDT"]
[Termination "jk13 won by resignation"]

1. Nf3 {[%clk 0:02:59.8]} 1... d5 {[%clk 0:02:59.5]} 2. g3 {[%clk 0:03:00.7]}
2... Nc6 {[%clk 0:02:59.6]} 3. Bg2 {[%clk 0:03:01.3]} 3... e5 {[%clk 0:03:00]}
4. d3 {[%clk 0:03:01.4]} 4... Be7 {[%clk 0:02:57.5]} 5. O-O {[%clk 0:03:01.7]}
5... Be6 {[%clk 0:02:57.8]} 6. c4 {[%clk 0:02:58.2]} 6... dxc4 {[%clk
0:02:57.2]} 7. Qa4 {[%clk 0:02:57.9]} 7... Bd7 {[%clk 0:02:24.5]} 8. Qxc4 {[%clk
0:02:54.8]} 8... Nf6 {[%clk 0:02:23.8]} 9. a3 {[%clk 0:02:50.3]} 9... O-O {[%clk
0:02:22.5]} 10. b4 {[%clk 0:02:50.6]} 10... a6 {[%clk 0:02:17.2]} 11. Bb2 {[%clk
0:02:50.5]} 11... Be6 {[%clk 0:02:17.3]} 12. Qc2 {[%clk 0:02:49.3]} 12... Bd6
{[%clk 0:02:14.1]} 13. Nbd2 {[%clk 0:02:47.8]} 13... Qe7 {[%clk 0:02:11.3]} 14.
Rac1 {[%clk 0:02:28.9]} 14... Rad8 {[%clk 0:02:06]} 15. Nc4 {[%clk 0:02:28.2]}
15... Bd5 {[%clk 0:02:05.3]} 16. e4 {[%clk 0:02:19.2]} 16... Bxc4 {[%clk
0:02:04.5]} 17. dxc4 {[%clk 0:02:11.7]} 17... Qe6 {[%clk 0:01:58.3]} 18. Rcd1
{[%clk 0:02:02.4]} 18... Be7 {[%clk 0:01:57.2]} 19. Rd5 {[%clk 0:01:53.2]} 19...
Nxd5 {[%clk 0:00:54.8]} 20. cxd5 {[%clk 0:01:51.3]} 20... Nxb4 {[%clk
0:00:55.4]} 21. axb4 {[%clk 0:01:47.8]} 21... Qb6 {[%clk 0:00:55.8]} 22. Bxe5
{[%clk 0:01:36.2]} 22... Qxb4 {[%clk 0:00:44.3]} 23. Rb1 {[%clk 0:01:32]} 23...
Qa3 {[%clk 0:00:44.2]} 24. Rxb7 {[%clk 0:01:23.6]} 24... Bd6 {[%clk 0:00:43.8]}
25. Bb2 {[%clk 0:01:18.1]} 25... Qa2 {[%clk 0:00:34.4]} 26. e5 {[%clk
0:01:05.5]} 26... Rb8 {[%clk 0:00:33.9]} 27. Rxb8 {[%clk 0:01:01.5]} 27... Rxb8
{[%clk 0:00:33.8]} 28. exd6 {[%clk 0:01:02.1]} 28... Rxb2 {[%clk 0:00:20.8]} 29.
Qxc7 {[%clk 0:00:43.1]} 29... h6 {[%clk 0:00:15]} 30. d7 {[%clk 0:00:42.5]}
30... Rxf2 {[%clk 0:00:13.8]} 31. d8=Q+ {[%clk 0:00:42.4]} 31... Kh7 {[%clk
0:00:14.5]} 32. Bf1 {[%clk 0:00:31.1]} 32... Rxf3 {[%clk 0:00:14.8]} 33. Qc5
{[%clk 0:00:27.3]} 33... Qd2 {[%clk 0:00:09.7]} 34. Qdc7 {[%clk 0:00:16.7]}
34... Qe1 {[%clk 0:00:07.6]} 35. Qc2+ {[%clk 0:00:15]} 35... g6 {[%clk
0:00:07.4]} 36. Qe2 {[%clk 0:00:14.6]} 36... Qc3 {[%clk 0:00:01.5]} 37. Qxc3
{[%clk 0:00:14]} 1-0

[Event "Early-Titled-Tuesday-Blitz-September-05-2023"]
[Site "Chess.com"]
[Date "2023.09.05"]
[Round "7"]
[White "mamey78"]
[Black "Fleetw00dMac"]
[Result "1-0"]
[WhiteElo "2628"]
[BlackElo "2460"]
[TimeControl "180+1"]
[EndTime "9:16:40 PDT"]
[Termination "mamey78 won by checkmate"]

1. e4 {[%clk 0:02:55.4]} 1... e5 {[%clk 0:02:59.5]} 2. Nf3 {[%clk 0:02:54]} 2...
Nc6 {[%clk 0:03:00]} 3. Bb5 {[%clk 0:02:53.9]} 3... a6 {[%clk 0:02:59.8]} 4. Ba4
{[%clk 0:02:54.2]} 4... Nf6 {[%clk 0:02:59.4]} 5. O-O {[%clk 0:02:54.7]} 5...
Nxe4 {[%clk 0:02:59.3]} 6. d4 {[%clk 0:02:54.4]} 6... Be7 {[%clk 0:02:59]} 7.
Qe2 {[%clk 0:02:50.7]} 7... b5 {[%clk 0:02:42.2]} 8. Bb3 {[%clk 0:02:49.1]} 8...
d5 {[%clk 0:02:41]} 9. dxe5 {[%clk 0:02:46.9]} 9... Be6 {[%clk 0:02:26.5]} 10.
Rd1 {[%clk 0:02:46.1]} 10... Nc5 {[%clk 0:02:25.1]} 11. c4 {[%clk 0:02:42.3]}
11... d4 {[%clk 0:02:14.3]} 12. cxb5 {[%clk 0:02:15.1]} 12... Bxb3 {[%clk
0:02:12.5]} 13. axb3 {[%clk 0:02:11.5]} 13... Nxb3 {[%clk 0:02:09]} 14. Rxa6
{[%clk 0:02:06.9]} 14... Nb4 {[%clk 0:02:03.4]} 15. Rxa8 {[%clk 0:01:52]} 15...
Qxa8 {[%clk 0:02:02.7]} 16. Bf4 {[%clk 0:01:44.7]} 16... d3 {[%clk 0:01:06.3]}
17. Qe1 {[%clk 0:01:27.2]} 17... Qd5 {[%clk 0:01:00.5]} 18. Nc3 {[%clk
0:01:25.9]} 18... Qc4 {[%clk 0:01:00.7]} 19. Bg5 {[%clk 0:01:10.3]} 19... Bxg5
{[%clk 0:00:54.5]} 20. Nxg5 {[%clk 0:01:11.2]} 20... h6 {[%clk 0:00:54.2]} 21.
Nge4 {[%clk 0:01:07.2]} 21... O-O {[%clk 0:00:53.9]} 22. Qe3 {[%clk 0:01:04.3]}
22... Re8 {[%clk 0:00:50.6]} 23. Qg3 {[%clk 0:01:02.9]} 23... Kh8 {[%clk
0:00:48.5]} 24. h3 {[%clk 0:01:00.2]} 24... Qd4 {[%clk 0:00:45.5]} 25. Qf4
{[%clk 0:00:49.5]} 25... Kg8 {[%clk 0:00:42.5]} 26. Qg3 {[%clk 0:00:21.1]} 26...
Qxe5 {[%clk 0:00:41.5]} 27. Qf3 {[%clk 0:00:20.6]} 27... f5 {[%clk 0:00:40.1]}
28. Ng3 {[%clk 0:00:20.6]} 28... Nd4 {[%clk 0:00:36.5]} 29. Qb7 {[%clk
0:00:19.2]} 29... f4 {[%clk 0:00:32.7]} 30. Nge4 {[%clk 0:00:18.5]} 30... Ne2+
{[%clk 0:00:32.6]} 31. Kh1 {[%clk 0:00:17.7]} 31... f3 {[%clk 0:00:32.4]} 32. g3
{[%clk 0:00:17.2]} 32... Qf5 {[%clk 0:00:31.5]} 33. Kh2 {[%clk 0:00:16.5]} 33...
h5 {[%clk 0:00:30.7]} 34. Qxc7 {[%clk 0:00:15.9]} 34... Rxe4 {[%clk 0:00:26.9]}
35. Nxe4 {[%clk 0:00:14.2]} 35... Qxe4 {[%clk 0:00:27]} 36. b6 {[%clk
0:00:13.4]} 36... Qd4 {[%clk 0:00:26.5]} 37. Rf1 {[%clk 0:00:11.9]} 37... Nd5
{[%clk 0:00:26.4]} 38. Qd8+ {[%clk 0:00:11.7]} 38... Kh7 {[%clk 0:00:26.2]} 39.
b7 {[%clk 0:00:12.6]} 39... d2 {[%clk 0:00:25.5]} 40. b8=Q {[%clk 0:00:11.9]}
40... d1=Q {[%clk 0:00:25.6]} 41. Qh8+ {[%clk 0:00:11.9]} 41... Kg6 {[%clk
0:00:26]} 42. Qbe8+ {[%clk 0:00:12.7]} 42... Kf5 {[%clk 0:00:24]} 43. Qhxh5+
{[%clk 0:00:12.3]} 43... Kf6 {[%clk 0:00:21.2]} 44. Qhf7+ {[%clk 0:00:12.3]}
44... Kg5 {[%clk 0:00:20.9]} 45. Qg6# {[%clk 0:00:12.9]} 1-0

[Event "Early-Titled-Tuesday-Blitz-September-05-2023"]
[Site "Chess.com"]
[Date "2023.09.05"]
[Round "7"]
[White "Actuary44"]
[Black "Cheer_Down"]
[Result "0-1"]
[WhiteElo "2524"]
[BlackElo "2446"]
[TimeControl "180+1"]
[EndTime "9:16:40 PDT"]
[Termination "Cheer_Down won on time"]

1. e4 {[%clk 0:03:00.9]} 1... c5 {[%clk 0:02:58.3]} 2. d4 {[%clk 0:03:00.7]}
2... cxd4 {[%clk 0:02:57.8]} 3. c3 {[%clk 0:03:01.3]} 3... Nf6 {[%clk
0:02:57.2]} 4. Bd3 {[%clk 0:03:00.9]} 4... Nc6 {[%clk 0:02:45.9]} 5. f4 {[%clk
0:03:00.8]} 5... d5 {[%clk 0:02:37.6]} 6. e5 {[%clk 0:03:00.5]} 6... Ne4 {[%clk
0:02:37.9]} 7. Nf3 {[%clk 0:02:59.4]} 7... dxc3 {[%clk 0:02:34.2]} 8. Nxc3
{[%clk 0:02:59.2]} 8... Nxc3 {[%clk 0:02:33.3]} 9. bxc3 {[%clk 0:03:00.1]} 9...
Bg4 {[%clk 0:02:31.5]} 10. O-O {[%clk 0:02:58.6]} 10... e6 {[%clk 0:02:30.7]}
11. Kh1 {[%clk 0:02:57.7]} 11... Be7 {[%clk 0:02:28]} 12. Qe1 {[%clk 0:02:55.5]}
12... Bxf3 {[%clk 0:02:27.9]} 13. Rxf3 {[%clk 0:02:55.1]} 13... g6 {[%clk
0:02:27.4]} 14. Rb1 {[%clk 0:02:51]} 14... b6 {[%clk 0:02:22.5]} 15. Bb5 {[%clk
0:02:42.5]} 15... Rc8 {[%clk 0:02:22.5]} 16. Rh3 {[%clk 0:02:34.1]} 16... O-O
{[%clk 0:02:19.9]} 17. Qd2 {[%clk 0:01:54.6]} 17... d4 {[%clk 0:01:58.1]} 18. f5
{[%clk 0:01:41.2]} 18... dxc3 {[%clk 0:01:57.3]} 19. Qf2 {[%clk 0:00:35.2]}
19... Qd1+ {[%clk 0:01:51.2]} 20. Bf1 {[%clk 0:00:34.4]} 20... exf5 {[%clk
0:01:10.6]} 21. Rd3 {[%clk 0:00:25.7]} 21... Qh5 {[%clk 0:01:08.3]} 22. Rxc3
{[%clk 0:00:21.6]} 22... Nxe5 {[%clk 0:01:05.8]} 23. Rxc8 {[%clk 0:00:22.5]}
23... Rxc8 {[%clk 0:01:05.6]} 24. Bb2 {[%clk 0:00:21.1]} 24... Ng4 {[%clk
0:01:02]} 25. Qg3 {[%clk 0:00:20.1]} 25... Bh4 {[%clk 0:00:53]} 26. Qd6 {[%clk
0:00:15.8]} 26... Be7 {[%clk 0:00:47.9]} 27. Qg3 {[%clk 0:00:14.4]} 27... Bc5
{[%clk 0:00:33]} 28. h3 {[%clk 0:00:10.9]} 28... Nf2+ {[%clk 0:00:33]} 29. Kh2
{[%clk 0:00:11.3]} 29... Ne4 {[%clk 0:00:31.2]} 30. Qf4 {[%clk 0:00:07.8]} 30...
Bd6 {[%clk 0:00:29]} 31. Be5 {[%clk 0:00:08]} 31... Qg5 {[%clk 0:00:21.8]} 32.
Bxd6 {[%clk 0:00:05.3]} 32... Qf6 {[%clk 0:00:18.7]} 33. Be5 {[%clk 0:00:05]}
33... Qe6 {[%clk 0:00:18.9]} 34. Ba6 {[%clk 0:00:04.9]} 34... Rc2 {[%clk
0:00:15.6]} 35. Rd1 {[%clk 0:00:04.2]} 35... h6 {[%clk 0:00:13]} 0-1

[Event "Early-Titled-Tuesday-Blitz-September-05-2023"]
[Site "Chess.com"]
[Date "2023.09.05"]
[Round "7"]
[White "Mesa_1"]
[Black "TanitoluwaAps116"]
[Result "0-1"]
[WhiteElo "2574"]
[BlackElo "2781"]
[TimeControl "180+1"]
[EndTime "9:16:41 PDT"]
[Termination "TanitoluwaAps116 won on time"]

1. d4 {[%clk 0:02:59.4]} 1... Nf6 {[%clk 0:02:55.8]} 2. Nf3 {[%clk 0:02:58.8]}
2... e6 {[%clk 0:02:56.2]} 3. Bf4 {[%clk 0:02:59.2]} 3... d5 {[%clk 0:02:53.5]}
4. e3 {[%clk 0:02:59.3]} 4... Bd6 {[%clk 0:02:53.7]} 5. Nbd2 {[%clk 0:02:57.9]}
5... O-O {[%clk 0:02:53.2]} 6. c3 {[%clk 0:02:51.7]} 6... c5 {[%clk 0:02:52.2]}
7. Bd3 {[%clk 0:02:50.9]} 7... Qc7 {[%clk 0:02:52.2]} 8. Ne5 {[%clk 0:02:50.5]}
8... Nbd7 {[%clk 0:02:50.8]} 9. Ndf3 {[%clk 0:02:46.9]} 9... b6 {[%clk
0:02:46.8]} 10. h4 {[%clk 0:02:44.3]} 10... Bb7 {[%clk 0:02:41.8]} 11. h5 {[%clk
0:02:44.2]} 11... Ne4 {[%clk 0:02:40.3]} 12. h6 {[%clk 0:02:42.3]} 12... g6
{[%clk 0:02:27.6]} 13. Nxd7 {[%clk 0:02:37.9]} 13... Qxd7 {[%clk 0:02:20.2]} 14.
Bxe4 {[%clk 0:02:34.5]} 14... Bxf4 {[%clk 0:02:18.4]} 15. dxc5 {[%clk
0:01:54.4]} 15... Qe7 {[%clk 0:01:42.4]} 16. Bc2 {[%clk 0:01:17]} 16... Bc7
{[%clk 0:01:37.3]} 17. cxb6 {[%clk 0:01:09.8]} 17... axb6 {[%clk 0:01:38.2]} 18.
O-O {[%clk 0:00:57]} 18... Rad8 {[%clk 0:01:19.1]} 19. Qe2 {[%clk 0:00:54.7]}
19... Qd6 {[%clk 0:01:11.8]} 20. e4 {[%clk 0:00:50.7]} 20... Qf4 {[%clk
0:01:08.3]} 21. Rfe1 {[%clk 0:00:36.9]} 21... Qxh6 {[%clk 0:00:57.7]} 22. e5
{[%clk 0:00:37.2]} 22... f6 {[%clk 0:00:41]} 23. Rad1 {[%clk 0:00:20.6]} 23...
Rde8 {[%clk 0:00:24]} 24. Rd4 {[%clk 0:00:18.2]} 24... fxe5 {[%clk 0:00:16.4]}
25. Nxe5 {[%clk 0:00:19.1]} 25... Qg7 {[%clk 0:00:12.8]} 26. Rg4 {[%clk
0:00:15.2]} 26... Rf5 {[%clk 0:00:08.9]} 27. f4 {[%clk 0:00:10.9]} 27... Bxe5
{[%clk 0:00:06.6]} 28. fxe5 {[%clk 0:00:11.8]} 28... Rh5 {[%clk 0:00:06.6]} 29.
Rg3 {[%clk 0:00:09.8]} 29... Qh6 {[%clk 0:00:06.9]} 30. Rf3 {[%clk 0:00:07.4]}
30... d4 {[%clk 0:00:06.9]} 31. Rf6 {[%clk 0:00:05.2]} 31... Rh1+ {[%clk
0:00:04.7]} 32. Kf2 {[%clk 0:00:05.6]} 32... Qh4+ {[%clk 0:00:05.3]} 0-1

[Event "Early-Titled-Tuesday-Blitz-September-05-2023"]
[Site "Chess.com"]
[Date "2023.09.05"]
[Round "7"]
[White "NovikovaGalina"]
[Black "hongnhung1234"]
[Result "1-0"]
[WhiteElo "2423"]
[BlackElo "2515"]
[TimeControl "180+1"]
[EndTime "9:16:41 PDT"]
[Termination "NovikovaGalina won on time"]

1. e4 {[%clk 0:03:00.9]} 1... c5 {[%clk 0:02:59.9]} 2. Nf3 {[%clk 0:03:01.4]}
2... e6 {[%clk 0:03:00.4]} 3. b4 {[%clk 0:03:00.5]} 3... cxb4 {[%clk 0:03:00]}
4. a3 {[%clk 0:03:00.6]} 4... d5 {[%clk 0:03:00.5]} 5. e5 {[%clk 0:03:00.9]}
5... d4 {[%clk 0:02:50.7]} 6. axb4 {[%clk 0:03:00.1]} 6... Bxb4 {[%clk
0:02:49.8]} 7. Bd3 {[%clk 0:03:01]} 7... Ne7 {[%clk 0:02:48.8]} 8. c3 {[%clk
0:03:01.9]} 8... dxc3 {[%clk 0:02:44.7]} 9. dxc3 {[%clk 0:03:02.8]} 9... Bc5
{[%clk 0:02:44.4]} 10. O-O {[%clk 0:03:03.5]} 10... Ng6 {[%clk 0:02:42.1]} 11.
Qe2 {[%clk 0:02:57.7]} 11... O-O {[%clk 0:02:39.2]} 12. h4 {[%clk 0:02:57.7]}
12... Nxh4 {[%clk 0:02:25.1]} 13. Bxh7+ {[%clk 0:02:25.3]} 13... Kxh7 {[%clk
0:01:56.8]} 14. Ng5+ {[%clk 0:02:24.8]} 14... Kg6 {[%clk 0:01:57.1]} 15. Qg4
{[%clk 0:02:24.8]} 15... f5 {[%clk 0:01:42.9]} 16. Qxh4 {[%clk 0:02:15.9]} 16...
Rh8 {[%clk 0:01:39.1]} 17. Qg3 {[%clk 0:02:16.3]} 17... Qb6 {[%clk 0:00:27.1]}
18. Nxe6+ {[%clk 0:02:03.4]} 18... Kf7 {[%clk 0:00:27.3]} 19. Qxg7+ {[%clk
0:01:59.2]} 19... Kxe6 {[%clk 0:00:27.5]} 20. Qxh8 {[%clk 0:01:59.5]} 20... Nd7
{[%clk 0:00:20.5]} 21. Ba3 {[%clk 0:01:48.3]} 21... Nxe5 {[%clk 0:00:16.2]} 22.
Bxc5 {[%clk 0:01:42.9]} 22... Qxc5 {[%clk 0:00:17.1]} 23. Na3 {[%clk 0:01:33]}
23... b6 {[%clk 0:00:16.3]} 24. Qh6+ {[%clk 0:01:30.8]} 24... Kf7 {[%clk
0:00:15.8]} 25. Qh5+ {[%clk 0:01:29.7]} 25... Kf6 {[%clk 0:00:15.8]} 26. Rfd1
{[%clk 0:01:15.5]} 26... Bb7 {[%clk 0:00:15.5]} 27. Qh6+ {[%clk 0:01:15.5]}
27... Kf7 {[%clk 0:00:15.4]} 28. Rd6 {[%clk 0:01:10.4]} 28... Nf3+ {[%clk
0:00:06.1]} 29. Kh1 {[%clk 0:00:32.4]} 29... Qxd6 {[%clk 0:00:05.5]} 30. Qh7+
{[%clk 0:00:23]} 30... Kf6 {[%clk 0:00:06]} 31. Nb5 {[%clk 0:00:19.7]} 31... Qf4
{[%clk 0:00:03.9]} 32. g3 {[%clk 0:00:16]} 32... Ng5+ {[%clk 0:00:02.2]} 33. Kg1
{[%clk 0:00:16.6]} 1-0

[Event "Early-Titled-Tuesday-Blitz-September-05-2023"]
[Site "Chess.com"]
[Date "2023.09.05"]
[Round "7"]
[White "infinitegiantkiller"]
[Black "Nick12772"]
[Result "1-0"]
[WhiteElo "2482"]
[BlackElo "2320"]
[TimeControl "180+1"]
[EndTime "9:16:45 PDT"]
[Termination "infinitegiantkiller won by resignation"]

1. Nf3 {[%clk 0:01:06.1]} 1... Nf6 {[%clk 0:02:58.9]} 2. g3 {[%clk 0:01:05.6]}
2... g6 {[%clk 0:02:59.1]} 3. Bg2 {[%clk 0:01:06.5]} 3... Bg7 {[%clk 0:02:59.8]}
4. O-O {[%clk 0:01:07.4]} 4... O-O {[%clk 0:03:00.3]} 5. b3 {[%clk 0:01:08.1]}
5... c5 {[%clk 0:03:00.2]} 6. Bb2 {[%clk 0:01:08.5]} 6... Nc6 {[%clk 0:03:00.4]}
7. d3 {[%clk 0:01:09.3]} 7... d6 {[%clk 0:03:00.8]} 8. Nbd2 {[%clk 0:01:10]}
8... Rb8 {[%clk 0:02:58.3]} 9. c4 {[%clk 0:01:09.7]} 9... a6 {[%clk 0:02:54.9]}
10. Rc1 {[%clk 0:01:08.7]} 10... b5 {[%clk 0:02:52.7]} 11. Qc2 {[%clk
0:01:09.4]} 11... b4 {[%clk 0:02:49]} 12. d4 {[%clk 0:01:04.4]} 12... a5 {[%clk
0:02:39.2]} 13. Rfd1 {[%clk 0:00:30]} 13... Qc7 {[%clk 0:02:34.4]} 14. e3 {[%clk
0:00:25.4]} 14... a4 {[%clk 0:02:34.2]} 15. bxa4 {[%clk 0:00:19.6]} 15... Bb7
{[%clk 0:02:32]} 16. dxc5 {[%clk 0:00:19.4]} 16... dxc5 {[%clk 0:02:32.6]} 17.
Nb3 {[%clk 0:00:20.2]} 17... Qb6 {[%clk 0:02:21.9]} 18. Ne5 {[%clk 0:00:14.6]}
18... Nxe5 {[%clk 0:02:17.8]} 19. Bxe5 {[%clk 0:00:15.5]} 19... Bxg2 {[%clk
0:02:17.5]} 20. Kxg2 {[%clk 0:00:16.4]} 20... Ra8 {[%clk 0:02:08.7]} 21. a5
{[%clk 0:00:14.7]} 21... Qb7+ {[%clk 0:02:07.8]} 22. Kg1 {[%clk 0:00:13.8]}
22... Qc6 {[%clk 0:01:59.8]} 23. Bxf6 {[%clk 0:00:13.6]} 23... Bxf6 {[%clk
0:01:59.4]} 24. Rd5 {[%clk 0:00:14.4]} 24... h5 {[%clk 0:01:21.1]} 25. h4 {[%clk
0:00:13.7]} 25... Qa4 {[%clk 0:01:05.2]} 26. Rxc5 {[%clk 0:00:13.3]} 26... Rfc8
{[%clk 0:00:53.7]} 27. Rxc8+ {[%clk 0:00:13.1]} 27... Rxc8 {[%clk 0:00:54.6]}
28. c5 {[%clk 0:00:12.7]} 28... Bc3 {[%clk 0:00:50.7]} 29. Qe2 {[%clk
0:00:11.1]} 29... Ra8 {[%clk 0:00:36.1]} 30. Rc2 {[%clk 0:00:10.3]} 30... Qc6
{[%clk 0:00:33.4]} 31. Qc4 {[%clk 0:00:06.9]} 31... Rd8 {[%clk 0:00:31]} 32. Nd4
{[%clk 0:00:07.2]} 32... Qa4 {[%clk 0:00:22.4]} 33. Rc1 {[%clk 0:00:05.9]} 33...
Qxa5 {[%clk 0:00:14.1]} 34. c6 {[%clk 0:00:05.9]} 34... Qe5 {[%clk 0:00:09.3]}
35. c7 {[%clk 0:00:05.8]} 35... Rc8 {[%clk 0:00:10]} 36. Nb5 {[%clk 0:00:05.6]}
36... Qf6 {[%clk 0:00:05.2]} 37. Nxc3 {[%clk 0:00:06]} 37... bxc3 {[%clk
0:00:05.3]} 38. Qxc3 {[%clk 0:00:06.6]} 38... Qb6 {[%clk 0:00:05.7]} 39. a4
{[%clk 0:00:06.3]} 39... Qa5 {[%clk 0:00:05.7]} 40. Qxa5 {[%clk 0:00:06.2]} 1-0